[Event "*** Titled Tuesday Blitz"]
[Site "Chess.com"]
[Date "2020.05.05"]
[Round "6"]
[White "LittlePeasant"]
[Black "tvjosue"]
[Result "1-0"]
[WhiteElo "2753"]
[BlackElo "2561"]
[TimeControl "180+1"]
[EndTime "11:08:34 PDT"]
[Termination "LittlePeasant won on time"]

1. Nf3 {[%clk 0:03:00.9]} 1... g6 {[%clk 0:02:56.1]} 2. g3 {[%clk 0:03:00.4]}
2... Bg7 {[%clk 0:02:55.5]} 3. Bg2 {[%clk 0:03:00.9]} 3... c5 {[%clk 0:02:55.9]}
4. O-O {[%clk 0:03:00.8]} 4... Nc6 {[%clk 0:02:56.2]} 5. c3 {[%clk 0:02:59.7]}
5... Nf6 {[%clk 0:02:35.6]} 6. d4 {[%clk 0:02:58.4]} 6... cxd4 {[%clk
0:02:31.9]} 7. cxd4 {[%clk 0:02:59.3]} 7... O-O {[%clk 0:02:31.4]} 8. d5 {[%clk
0:02:55.5]} 8... Na5 {[%clk 0:02:26.1]} 9. Nc3 {[%clk 0:02:51.5]} 9... d6 {[%clk
0:02:24.3]} 10. Nd4 {[%clk 0:02:48.5]} 10... Bd7 {[%clk 0:02:18.8]} 11. b3
{[%clk 0:02:46]} 11... Qb6 {[%clk 0:02:16.7]} 12. Bb2 {[%clk 0:02:40.3]} 12...
Rfc8 {[%clk 0:02:16.2]} 13. Qd2 {[%clk 0:02:37.1]} 13... Ng4 {[%clk 0:02:11.4]}
14. Rad1 {[%clk 0:02:19]} 14... Ne5 {[%clk 0:02:09.4]} 15. Ba1 {[%clk
0:02:18.9]} 15... Qb4 {[%clk 0:01:37.6]} 16. h3 {[%clk 0:02:08.9]} 16... Be8
{[%clk 0:01:36.3]} 17. Kh1 {[%clk 0:01:54.4]} 17... Rc7 {[%clk 0:01:33]} 18. f4
{[%clk 0:01:24.9]} 18... Nd7 {[%clk 0:01:30.8]} 19. Ncb5 {[%clk 0:01:00.3]}
19... Qxd2 {[%clk 0:01:26.7]} 20. Rxd2 {[%clk 0:01:01.2]} 20... Rcc8 {[%clk
0:01:22.5]} 21. Bc3 {[%clk 0:01:01.7]} 21... a6 {[%clk 0:01:15.2]} 22. Bxa5
{[%clk 0:00:48.3]} 22... axb5 {[%clk 0:01:14.7]} 23. Bb4 {[%clk 0:00:49.1]}
23... Bxd4 {[%clk 0:01:14.1]} 24. Rxd4 {[%clk 0:00:49]} 24... Rxa2 {[%clk
0:01:14.1]} 25. Bf3 {[%clk 0:00:48.8]} 25... Nc5 {[%clk 0:01:02.7]} 26. Rb1
{[%clk 0:00:47.6]} 26... Bd7 {[%clk 0:01:00.5]} 27. g4 {[%clk 0:00:46.6]} 27...
Rca8 {[%clk 0:00:42]} 28. Bc3 {[%clk 0:00:46.4]} 28... Rc2 {[%clk 0:00:40.6]}
29. Be1 {[%clk 0:00:36.9]} 29... Rca2 {[%clk 0:00:31]} 30. b4 {[%clk 0:00:29.7]}
30... Ra1 {[%clk 0:00:25.1]} 31. Rdd1 {[%clk 0:00:30.2]} 31... Rxb1 {[%clk
0:00:24.9]} 32. Rxb1 {[%clk 0:00:31.1]} 32... Na4 {[%clk 0:00:24.1]} 33. Bf2
{[%clk 0:00:21.6]} 33... Rc8 {[%clk 0:00:23.3]} 34. Kg1 {[%clk 0:00:21.1]} 34...
Rc2 {[%clk 0:00:22.1]} 35. Kf1 {[%clk 0:00:18.8]} 35... f6 {[%clk 0:00:19.5]}
36. Bd4 {[%clk 0:00:18.2]} 36... Kf7 {[%clk 0:00:19.1]} 37. Ke1 {[%clk 0:00:18]}
37... Rc4 {[%clk 0:00:17.4]} 38. e3 {[%clk 0:00:16.3]} 38... h6 {[%clk
0:00:15.8]} 39. h4 {[%clk 0:00:14.4]} 39... g5 {[%clk 0:00:15.5]} 40. hxg5
{[%clk 0:00:14.2]} 40... fxg5 {[%clk 0:00:16.4]} 41. f5 {[%clk 0:00:14.9]} 41...
Bc8 {[%clk 0:00:15.5]} 42. Kd2 {[%clk 0:00:14.1]} 42... Bd7 {[%clk 0:00:14.9]}
43. Rh1 {[%clk 0:00:14]} 43... Rxb4 {[%clk 0:00:14.4]} 44. Rxh6 {[%clk
0:00:13.5]} 44... Nc5 {[%clk 0:00:14.3]} 45. Rh7+ {[%clk 0:00:12.4]} 45... Kf8
{[%clk 0:00:14.9]} 46. Bxc5 {[%clk 0:00:10.3]} 46... dxc5 {[%clk 0:00:14.7]} 47.
d6 {[%clk 0:00:11.2]} 47... Rb2+ {[%clk 0:00:13.5]} 48. Kc3 {[%clk 0:00:10.8]}
48... Rf2 {[%clk 0:00:13.1]} 49. dxe7+ {[%clk 0:00:08.8]} 49... Ke8 {[%clk
0:00:12.4]} 50. Bxb7 {[%clk 0:00:09.7]} 50... b4+ {[%clk 0:00:12.8]} 51. Kc4
{[%clk 0:00:09.5]} 51... Rc2+ {[%clk 0:00:12.3]} 52. Kd5 {[%clk 0:00:09.6]}
52... Rd2+ {[%clk 0:00:11.2]} 53. Ke5 {[%clk 0:00:09.2]} 53... b3 {[%clk
0:00:09]} 54. Kf6 {[%clk 0:00:09.1]} 54... Rd6+ {[%clk 0:00:08.8]} 55. Ke5
{[%clk 0:00:08.8]} 55... Rd3 {[%clk 0:00:08.3]} 56. f6 {[%clk 0:00:06.2]} 56...
Rxe3+ {[%clk 0:00:06.2]} 57. Be4 {[%clk 0:00:06.6]} 1-0

[Event "*** Titled Tuesday Blitz"]
[Site "Chess.com"]
[Date "2020.05.05"]
[Round "6"]
[White "MarcoRiehle"]
[Black "Bodnar_Mykola"]
[Result "1-0"]
[WhiteElo "2619"]
[BlackElo "2438"]
[TimeControl "180+1"]
[EndTime "11:08:34 PDT"]
[Termination "MarcoRiehle won on time"]

1. e4 {[%clk 0:03:00.9]} 1... e5 {[%clk 0:02:58.2]} 2. Nf3 {[%clk 0:03:00.4]}
2... Nc6 {[%clk 0:02:58.1]} 3. Bc4 {[%clk 0:02:57.9]} 3... Bc5 {[%clk
0:02:57.2]} 4. O-O {[%clk 0:02:56.8]} 4... d6 {[%clk 0:02:56.5]} 5. c3 {[%clk
0:02:54.9]} 5... Nf6 {[%clk 0:02:54.8]} 6. d4 {[%clk 0:02:54.4]} 6... Bb6 {[%clk
0:02:54.7]} 7. dxe5 {[%clk 0:02:54.1]} 7... Nxe5 {[%clk 0:02:50.9]} 8. Nxe5
{[%clk 0:02:53.6]} 8... dxe5 {[%clk 0:02:51.8]} 9. Qxd8+ {[%clk 0:02:54]} 9...
Kxd8 {[%clk 0:02:52]} 10. Bg5 {[%clk 0:02:54.6]} 10... Ke7 {[%clk 0:02:50.9]}
11. Bh4 {[%clk 0:02:48.8]} 11... h6 {[%clk 0:02:47.3]} 12. Nd2 {[%clk
0:02:41.4]} 12... c6 {[%clk 0:02:43.8]} 13. Bg3 {[%clk 0:02:40]} 13... Bc7
{[%clk 0:02:42.1]} 14. Nf3 {[%clk 0:02:40.3]} 14... Nd7 {[%clk 0:02:37.1]} 15.
Rad1 {[%clk 0:02:37.1]} 15... g5 {[%clk 0:02:34.7]} 16. h4 {[%clk 0:02:34.4]}
16... f6 {[%clk 0:02:34.5]} 17. Nd2 {[%clk 0:02:27.8]} 17... Nc5 {[%clk
0:02:32.5]} 18. f3 {[%clk 0:02:26.2]} 18... b5 {[%clk 0:02:31.1]} 19. Be2 {[%clk
0:02:25.2]} 19... Ne6 {[%clk 0:02:29.6]} 20. hxg5 {[%clk 0:02:20]} 20... hxg5
{[%clk 0:02:29]} 21. Bf2 {[%clk 0:01:50.9]} 21... Nf4 {[%clk 0:02:19.9]} 22.
Rfe1 {[%clk 0:01:49.5]} 22... Bb6 {[%clk 0:02:11.4]} 23. Bf1 {[%clk 0:01:45.8]}
23... Be6 {[%clk 0:02:09.6]} 24. Nb3 {[%clk 0:01:34.4]} 24... Rh7 {[%clk
0:02:00.3]} 25. g3 {[%clk 0:01:26.9]} 25... Nh3+ {[%clk 0:01:32.3]} 26. Bxh3
{[%clk 0:01:26.2]} 26... Rxh3 {[%clk 0:01:33.2]} 27. Kg2 {[%clk 0:01:19.7]}
27... Bxf2 {[%clk 0:01:21.9]} 28. Kxf2 {[%clk 0:01:20.6]} 28... Rh2+ {[%clk
0:01:21.1]} 29. Ke3 {[%clk 0:01:21.1]} 29... Rxb2 {[%clk 0:01:20.6]} 30. Nc5
{[%clk 0:01:20.5]} 30... Rh8 {[%clk 0:01:14]} 31. Rh1 {[%clk 0:01:08.9]} 31...
Rxh1 {[%clk 0:01:08.2]} 32. Rxh1 {[%clk 0:01:09.8]} 32... Kd6 {[%clk 0:01:08.5]}
33. Nb7+ {[%clk 0:01:08.3]} 33... Ke7 {[%clk 0:00:59.8]} 34. Rh7+ {[%clk
0:01:00.2]} 34... Kf8 {[%clk 0:00:59.8]} 35. Nc5 {[%clk 0:00:56.2]} 35... Bxa2
{[%clk 0:00:31.9]} 36. Nd7+ {[%clk 0:00:54.8]} 36... Ke8 {[%clk 0:00:31.6]} 37.
Nxf6+ {[%clk 0:00:55.4]} 37... Kd8 {[%clk 0:00:32.1]} 38. Rxa7 {[%clk
0:00:49.5]} 38... Bc4 {[%clk 0:00:31.3]} 39. f4 {[%clk 0:00:46.6]} 39... gxf4+
{[%clk 0:00:26.5]} 40. gxf4 {[%clk 0:00:47.5]} 40... exf4+ {[%clk 0:00:24.3]}
41. Kxf4 {[%clk 0:00:48.4]} 41... Rc2 {[%clk 0:00:24]} 42. Ke5 {[%clk
0:00:35.7]} 42... Rxc3 {[%clk 0:00:23.6]} 43. Kd6 {[%clk 0:00:36.1]} 43... Kc8
{[%clk 0:00:21.4]} 44. Rc7+ {[%clk 0:00:33.8]} 44... Kb8 {[%clk 0:00:21.2]} 45.
Nd7+ {[%clk 0:00:29.8]} 45... Ka8 {[%clk 0:00:20.9]} 46. Rxc6 {[%clk 0:00:30.4]}
46... Rd3+ {[%clk 0:00:17.6]} 47. Kc7 {[%clk 0:00:30.6]} 47... Ka7 {[%clk
0:00:17.1]} 48. Nc5 {[%clk 0:00:28.6]} 48... Ra3 {[%clk 0:00:15.1]} 49. Nd7
{[%clk 0:00:21.9]} 49... Bf7 {[%clk 0:00:13.8]} 50. e5 {[%clk 0:00:18.4]} 50...
b4 {[%clk 0:00:13.7]} 51. Nc5 {[%clk 0:00:15.6]} 51... b3 {[%clk 0:00:11.3]} 52.
Rb6 {[%clk 0:00:15.7]} 52... Ra5 {[%clk 0:00:09.4]} 53. Rb7+ {[%clk 0:00:12.7]}
53... Ka8 {[%clk 0:00:09.1]} 54. Nd7 {[%clk 0:00:11.8]} 1-0

[Event "*** Titled Tuesday Blitz"]
[Site "Chess.com"]
[Date "2020.05.05"]
[Round "6"]
[White "ntmh281"]
[Black "binbin239"]
[Result "1-0"]
[WhiteElo "2297"]
[BlackElo "2425"]
[TimeControl "180+1"]
[EndTime "11:08:34 PDT"]
[Termination "ntmh281 won by resignation"]

1. d4 {[%clk 0:03:00.9]} 1... Nf6 {[%clk 0:02:56.7]} 2. Nf3 {[%clk 0:03:00.7]}
2... g6 {[%clk 0:02:56.9]} 3. Bg5 {[%clk 0:03:00.7]} 3... Bg7 {[%clk 0:02:56.9]}
4. Nbd2 {[%clk 0:03:01.3]} 4... d5 {[%clk 0:02:57.2]} 5. e3 {[%clk 0:03:01.4]}
5... O-O {[%clk 0:02:57.4]} 6. Bd3 {[%clk 0:02:58.4]} 6... c5 {[%clk 0:02:57.7]}
7. c3 {[%clk 0:02:58.4]} 7... Nc6 {[%clk 0:02:56.2]} 8. O-O {[%clk 0:02:56.6]}
8... Qb6 {[%clk 0:02:52.5]} 9. Rb1 {[%clk 0:02:49]} 9... Nd7 {[%clk 0:02:48.7]}
10. Qe2 {[%clk 0:02:21.5]} 10... e5 {[%clk 0:02:48.2]} 11. dxc5 {[%clk
0:02:01.6]} 11... Nxc5 {[%clk 0:02:42.6]} 12. Bc2 {[%clk 0:02:00.9]} 12... Ne6
{[%clk 0:02:32.2]} 13. Bh4 {[%clk 0:01:57.9]} 13... d4 {[%clk 0:02:29.4]} 14.
Nc4 {[%clk 0:01:46.8]} 14... Qc7 {[%clk 0:02:22]} 15. cxd4 {[%clk 0:01:34.5]}
15... exd4 {[%clk 0:02:13.6]} 16. Bg3 {[%clk 0:01:25]} 16... Qd8 {[%clk
0:02:12.6]} 17. Rfd1 {[%clk 0:01:23.9]} 17... Bd7 {[%clk 0:02:12.8]} 18. Nce5
{[%clk 0:01:19.8]} 18... Rc8 {[%clk 0:01:51.6]} 19. exd4 {[%clk 0:01:14.4]}
19... Nb4 {[%clk 0:01:34.7]} 20. Bb3 {[%clk 0:01:04.4]} 20... a6 {[%clk
0:01:29.5]} 21. a3 {[%clk 0:00:57.1]} 21... Bb5 {[%clk 0:01:20.8]} 22. Qe4
{[%clk 0:00:51.9]} 22... Nc6 {[%clk 0:00:27.5]} 23. a4 {[%clk 0:00:51.5]} 23...
Bxa4 {[%clk 0:00:25.8]} 24. Bxa4 {[%clk 0:00:51.5]} 24... Nxe5 {[%clk
0:00:26.3]} 25. Bxe5 {[%clk 0:00:47.1]} 25... b5 {[%clk 0:00:26.2]} 26. Bb3
{[%clk 0:00:42.7]} 26... Re8 {[%clk 0:00:24.4]} 27. Bxg7 {[%clk 0:00:36.6]}
27... Nxg7 {[%clk 0:00:24.9]} 28. Qd5 {[%clk 0:00:34.2]} 28... Qc7 {[%clk
0:00:24.3]} 29. h3 {[%clk 0:00:32.7]} 29... Rcd8 {[%clk 0:00:24.7]} 30. Qg5
{[%clk 0:00:28.9]} 30... Nf5 {[%clk 0:00:24.8]} 31. Qf6 {[%clk 0:00:26.8]} 31...
Rd6 {[%clk 0:00:23.7]} 32. Qg5 {[%clk 0:00:26]} 32... Kg7 {[%clk 0:00:23.4]} 33.
Rbc1 {[%clk 0:00:23.1]} 33... Qd7 {[%clk 0:00:23.3]} 34. Ne5 {[%clk 0:00:22.8]}
34... Qe7 {[%clk 0:00:20.2]} 35. Nxf7 {[%clk 0:00:20.4]} 35... Qxg5 {[%clk
0:00:19.8]} 36. Nxg5 {[%clk 0:00:19.7]} 36... Nxd4 {[%clk 0:00:20.3]} 37. Ba2
{[%clk 0:00:12.9]} 37... Ne2+ {[%clk 0:00:20.5]} 38. Kf1 {[%clk 0:00:11.9]}
38... Nxc1 {[%clk 0:00:20.9]} 39. Rxd6 {[%clk 0:00:11.7]} 39... Nxa2 {[%clk
0:00:21.5]} 40. Rxa6 {[%clk 0:00:08.3]} 40... Nb4 {[%clk 0:00:21.2]} 41. Rb6
{[%clk 0:00:07.4]} 41... Nd3 {[%clk 0:00:21.5]} 42. Nf3 {[%clk 0:00:07.2]} 42...
b4 {[%clk 0:00:20.8]} 43. b3 {[%clk 0:00:06.4]} 43... Rc8 {[%clk 0:00:20.8]} 44.
g3 {[%clk 0:00:03.7]} 44... Rc1+ {[%clk 0:00:20.7]} 45. Ke2 {[%clk 0:00:03.2]}
45... Nc5 {[%clk 0:00:20.5]} 46. Rxb4 {[%clk 0:00:02.3]} 46... Rc2+ {[%clk
0:00:20.3]} 47. Ke3 {[%clk 0:00:02.6]} 47... Rxf2 {[%clk 0:00:19.7]} 48. Kxf2
{[%clk 0:00:02.3]} 48... Nd3+ {[%clk 0:00:20.1]} 49. Ke3 {[%clk 0:00:03.2]}
49... Nxb4 {[%clk 0:00:20.9]} 50. Kd4 {[%clk 0:00:03.3]} 50... Kf6 {[%clk
0:00:20.9]} 51. Kc4 {[%clk 0:00:02.9]} 51... Nc6 {[%clk 0:00:20.6]} 52. b4
{[%clk 0:00:02]} 52... Kf5 {[%clk 0:00:21]} 53. Nd4+ {[%clk 0:00:01.7]} 53...
Nxd4 {[%clk 0:00:20.6]} 54. Kxd4 {[%clk 0:00:02.6]} 1-0

[Event "*** Titled Tuesday Blitz"]
[Site "Chess.com"]
[Date "2020.05.05"]
[Round "6"]
[White "OparinGrigoriy"]
[Black "Mikhail_Biryukov"]
[Result "1-0"]
[WhiteElo "2929"]
[BlackElo "2694"]
[TimeControl "180+1"]
[EndTime "11:08:35 PDT"]
[Termination "OparinGrigoriy won by resignation"]

1. Nf3 {[%clk 0:03:00.9]} 1... Nf6 {[%clk 0:02:59.3]} 2. g3 {[%clk 0:03:01.8]}
2... e6 {[%clk 0:02:59.3]} 3. Bg2 {[%clk 0:03:02.7]} 3... d5 {[%clk 0:03:00]} 4.
c4 {[%clk 0:03:03.6]} 4... dxc4 {[%clk 0:02:55.9]} 5. Qa4+ {[%clk 0:03:02.9]}
5... Nbd7 {[%clk 0:02:54.3]} 6. Qxc4 {[%clk 0:03:02.6]} 6... a6 {[%clk
0:02:54.7]} 7. Qc2 {[%clk 0:03:02.6]} 7... c5 {[%clk 0:02:53.8]} 8. Nc3 {[%clk
0:03:02.3]} 8... Be7 {[%clk 0:02:51.4]} 9. O-O {[%clk 0:03:02.1]} 9... O-O
{[%clk 0:02:51.2]} 10. d4 {[%clk 0:03:02.7]} 10... Rb8 {[%clk 0:02:44.6]} 11.
Rd1 {[%clk 0:02:59.1]} 11... b5 {[%clk 0:02:42.8]} 12. dxc5 {[%clk 0:02:58.4]}
12... Bxc5 {[%clk 0:02:42.4]} 13. Ng5 {[%clk 0:02:37.6]} 13... Qb6 {[%clk
0:02:23.9]} 14. Nce4 {[%clk 0:02:29.2]} 14... Nxe4 {[%clk 0:02:17.7]} 15. Nxe4
{[%clk 0:02:30.1]} 15... Be7 {[%clk 0:02:02.6]} 16. Be3 {[%clk 0:02:29.4]} 16...
Qa5 {[%clk 0:01:58]} 17. a3 {[%clk 0:02:17.1]} 17... b4 {[%clk 0:01:40.1]} 18.
Nd6 {[%clk 0:02:02.1]} 18... b3 {[%clk 0:01:32.1]} 19. Qc4 {[%clk 0:01:37.4]}
19... Nf6 {[%clk 0:01:26.3]} 20. Rac1 {[%clk 0:01:20.9]} 20... h6 {[%clk
0:01:04.5]} 21. Nxc8 {[%clk 0:00:51.6]} 21... Rbxc8 {[%clk 0:01:03.9]} 22. Qxc8
{[%clk 0:00:52.5]} 22... Rxc8 {[%clk 0:01:03.8]} 23. Rxc8+ {[%clk 0:00:53.4]}
23... Kh7 {[%clk 0:01:04.2]} 24. Bd4 {[%clk 0:00:53.8]} 24... Qb5 {[%clk
0:00:59.9]} 25. Bf3 {[%clk 0:00:50.2]} 25... e5 {[%clk 0:00:55]} 26. Bc3 {[%clk
0:00:47.7]} 26... e4 {[%clk 0:00:42.2]} 27. Bg2 {[%clk 0:00:38.2]} 27... Qxe2
{[%clk 0:00:41.2]} 28. Re1 {[%clk 0:00:37.6]} 28... Qb5 {[%clk 0:00:39.8]} 29.
Rc7 {[%clk 0:00:33.1]} 29... Bd6 {[%clk 0:00:25.8]} 30. Rxf7 {[%clk 0:00:32.1]}
30... Be5 {[%clk 0:00:26]} 31. Re3 {[%clk 0:00:17.2]} 31... Bxc3 {[%clk
0:00:24.3]} 32. Rxc3 {[%clk 0:00:18.1]} 32... Qd5 {[%clk 0:00:24.2]} 33. Rcc7
{[%clk 0:00:11.3]} 33... Ne8 {[%clk 0:00:24.2]} 34. Rce7 {[%clk 0:00:10.5]}
34... Nd6 {[%clk 0:00:24.1]} 35. Rxg7+ {[%clk 0:00:10.5]} 35... Kh8 {[%clk
0:00:24.4]} 36. Rh7+ {[%clk 0:00:07.7]} 36... Kg8 {[%clk 0:00:24.2]} 37. h4
{[%clk 0:00:08.4]} 37... Qd1+ {[%clk 0:00:23.4]} 38. Kh2 {[%clk 0:00:08.3]}
38... Qd2 {[%clk 0:00:23.5]} 39. Reg7+ {[%clk 0:00:06.8]} 39... Kf8 {[%clk
0:00:23.3]} 40. Rd7 {[%clk 0:00:07.2]} 40... Ke8 {[%clk 0:00:20.7]} 41. Ra7
{[%clk 0:00:06.4]} 41... Kd8 {[%clk 0:00:19.7]} 42. Ra8+ {[%clk 0:00:05.4]}
42... Nc8 {[%clk 0:00:20]} 43. Rh8+ {[%clk 0:00:04.3]} 43... Kd7 {[%clk
0:00:19.6]} 44. Raxc8 {[%clk 0:00:04.5]} 44... Qxb2 {[%clk 0:00:19.8]} 45. Rhd8+
{[%clk 0:00:04.6]} 45... Ke7 {[%clk 0:00:19.9]} 46. Re8+ {[%clk 0:00:05.2]}
46... Kf7 {[%clk 0:00:20.1]} 47. Rxe4 {[%clk 0:00:05.1]} 47... Qxa3 {[%clk
0:00:18.8]} 48. Rb8 {[%clk 0:00:04.3]} 48... a5 {[%clk 0:00:18.3]} 49. Re3
{[%clk 0:00:04.3]} 49... a4 {[%clk 0:00:17.5]} 50. Bd5+ {[%clk 0:00:04.9]} 50...
Kf6 {[%clk 0:00:17.2]} 51. Bxb3 {[%clk 0:00:05.8]} 51... axb3 {[%clk 0:00:16.8]}
52. Rbxb3 {[%clk 0:00:06.7]} 52... Qa2 {[%clk 0:00:17.2]} 53. Rf3+ {[%clk
0:00:07.3]} 53... Kg6 {[%clk 0:00:17.3]} 54. Rbe3 {[%clk 0:00:08.2]} 54... Qc2
{[%clk 0:00:16.4]} 55. Re6+ {[%clk 0:00:07.5]} 55... Kh5 {[%clk 0:00:15.7]} 56.
Re5+ {[%clk 0:00:07.4]} 56... Kg6 {[%clk 0:00:15.7]} 57. h5+ {[%clk 0:00:07.1]}
57... Kg7 {[%clk 0:00:15.5]} 58. Rf4 {[%clk 0:00:07]} 58... Qc7 {[%clk
0:00:14.7]} 59. Ref5 {[%clk 0:00:07.2]} 59... Qc3 {[%clk 0:00:14]} 60. Rf7+
{[%clk 0:00:06.9]} 60... Kg8 {[%clk 0:00:14.4]} 61. Rf8+ {[%clk 0:00:07.8]} 1-0

[Event "*** Titled Tuesday Blitz"]
[Site "Chess.com"]
[Date "2020.05.05"]
[Round "6"]
[White "AvitalBor"]
[Black "Szczor"]
[Result "1-0"]
[WhiteElo "2829"]
[BlackElo "2650"]
[TimeControl "180+1"]
[EndTime "11:08:35 PDT"]
[Termination "AvitalBor won by checkmate"]

1. Nf3 {[%clk 0:03:00.9]} 1... Nf6 {[%clk 0:02:52.7]} 2. g3 {[%clk 0:03:01.2]}
2... e6 {[%clk 0:02:52.6]} 3. Bg2 {[%clk 0:03:01.8]} 3... d5 {[%clk 0:02:52.8]}
4. O-O {[%clk 0:03:02.4]} 4... Be7 {[%clk 0:02:53.3]} 5. d4 {[%clk 0:03:02.3]}
5... O-O {[%clk 0:02:53.8]} 6. b3 {[%clk 0:03:02.9]} 6... b6 {[%clk 0:02:54.3]}
7. Bb2 {[%clk 0:03:03.5]} 7... Bb7 {[%clk 0:02:54.9]} 8. c4 {[%clk 0:03:03.9]}
8... Nbd7 {[%clk 0:02:54.6]} 9. e3 {[%clk 0:03:03.8]} 9... c5 {[%clk 0:02:54.9]}
10. Nc3 {[%clk 0:03:03.4]} 10... Rc8 {[%clk 0:02:53.9]} 11. cxd5 {[%clk
0:02:57.8]} 11... Nxd5 {[%clk 0:02:53.8]} 12. Rc1 {[%clk 0:02:53.6]} 12... Nxc3
{[%clk 0:02:45.5]} 13. Bxc3 {[%clk 0:02:53]} 13... Nf6 {[%clk 0:02:44]} 14. Bb2
{[%clk 0:02:41]} 14... cxd4 {[%clk 0:02:40.3]} 15. Rxc8 {[%clk 0:02:37.7]} 15...
Qxc8 {[%clk 0:02:41.2]} 16. Nxd4 {[%clk 0:02:37.8]} 16... Rd8 {[%clk 0:02:34.6]}
17. Qe2 {[%clk 0:02:30.2]} 17... Ba6 {[%clk 0:02:19.1]} 18. Nb5 {[%clk
0:02:25.3]} 18... Qc5 {[%clk 0:02:19.1]} 19. a4 {[%clk 0:02:24.4]} 19... Qb4
{[%clk 0:02:19.3]} 20. Qc4 {[%clk 0:02:04.2]} 20... Qxc4 {[%clk 0:01:51]} 21.
bxc4 {[%clk 0:02:05.1]} 21... Rd2 {[%clk 0:01:50.5]} 22. Bd4 {[%clk 0:01:59.1]}
22... Ra2 {[%clk 0:01:45.3]} 23. Ra1 {[%clk 0:01:35.6]} 23... Rxa1+ {[%clk
0:01:29.4]} 24. Bxa1 {[%clk 0:01:36.5]} 24... Nd7 {[%clk 0:01:24.7]} 25. Bc6
{[%clk 0:01:18.7]} 25... Nc5 {[%clk 0:01:19.5]} 26. Bd4 {[%clk 0:01:11.2]} 26...
Bxb5 {[%clk 0:00:50.2]} 27. axb5 {[%clk 0:01:06.6]} 27... Bf6 {[%clk 0:00:45]}
28. Kg2 {[%clk 0:00:53.4]} 28... Kf8 {[%clk 0:00:45]} 29. Kf3 {[%clk 0:00:51.2]}
29... Ke7 {[%clk 0:00:35.5]} 30. Ke2 {[%clk 0:00:51]} 30... Kd6 {[%clk
0:00:34.1]} 31. f4 {[%clk 0:00:46.3]} 31... e5 {[%clk 0:00:33.4]} 32. fxe5+
{[%clk 0:00:43.9]} 32... Bxe5 {[%clk 0:00:34.3]} 33. Bd5 {[%clk 0:00:41.9]}
33... f5 {[%clk 0:00:31.1]} 34. Kf3 {[%clk 0:00:38.3]} 34... g6 {[%clk
0:00:30.4]} 35. Bg8 {[%clk 0:00:36.8]} 35... Bxd4 {[%clk 0:00:23.5]} 36. exd4
{[%clk 0:00:36.2]} 36... Ne6 {[%clk 0:00:24]} 37. Bxe6 {[%clk 0:00:10.7]} 37...
Kxe6 {[%clk 0:00:24.9]} 38. g4 {[%clk 0:00:09.9]} 38... fxg4+ {[%clk 0:00:18]}
39. Kxg4 {[%clk 0:00:10.1]} 39... h6 {[%clk 0:00:18.5]} 40. Kf4 {[%clk
0:00:10.1]} 40... Kd6 {[%clk 0:00:16.1]} 41. d5 {[%clk 0:00:10.2]} 41... Kd7
{[%clk 0:00:11.2]} 42. Ke5 {[%clk 0:00:09.7]} 42... Ke7 {[%clk 0:00:11.6]} 43.
h3 {[%clk 0:00:09.7]} 43... h5 {[%clk 0:00:09.2]} 44. Ke4 {[%clk 0:00:08.5]}
44... Kf6 {[%clk 0:00:09.5]} 45. Kf4 {[%clk 0:00:07.2]} 45... g5+ {[%clk
0:00:09.9]} 46. Ke4 {[%clk 0:00:07.6]} 46... Ke7 {[%clk 0:00:07.6]} 47. Kf5
{[%clk 0:00:07.7]} 47... g4 {[%clk 0:00:07.9]} 48. hxg4 {[%clk 0:00:08]} 48...
hxg4 {[%clk 0:00:08.1]} 49. Kxg4 {[%clk 0:00:08.3]} 49... Kd6 {[%clk 0:00:09]}
50. Kf5 {[%clk 0:00:08.7]} 50... Kd7 {[%clk 0:00:08.6]} 51. Ke5 {[%clk 0:00:09]}
51... Ke7 {[%clk 0:00:09.5]} 52. d6+ {[%clk 0:00:09.3]} 52... Kd7 {[%clk
0:00:10.4]} 53. Kd5 {[%clk 0:00:09.7]} 53... Kd8 {[%clk 0:00:11]} 54. Kc6 {[%clk
0:00:09.7]} 54... Kc8 {[%clk 0:00:11.9]} 55. d7+ {[%clk 0:00:10]} 55... Kd8
{[%clk 0:00:12.1]} 56. Kd6 {[%clk 0:00:10.2]} 56... a5 {[%clk 0:00:10.7]} 57.
bxa6 {[%clk 0:00:10.5]} 57... b5 {[%clk 0:00:11.6]} 58. a7 {[%clk 0:00:10.9]}
58... bxc4 {[%clk 0:00:12.5]} 59. a8=R# {[%clk 0:00:08.7]} 1-0